[Event "Early-Titled-Tuesday-Blitz-February-27-2024"]
[Site "Chess.com"]
[Date "2024.02.27"]
[Round "5"]
[White "newauto"]
[Black "KhazhatulyAlikhan"]
[Result "0-1"]
[WhiteElo "2218"]
[BlackElo "2423"]
[TimeControl "180+1"]
[EndTime "8:54:21 PST"]
[Termination "KhazhatulyAlikhan won by checkmate"]

1. d4 {[%clk 0:03:00.9]} 1... d5 {[%clk 0:02:58.3]} 2. Nf3 {[%clk 0:02:53.5]}
2... Bf5 {[%clk 0:02:56.5]} 3. Bg5 {[%clk 0:02:53.3]} 3... Nf6 {[%clk
0:02:40.1]} 4. e3 {[%clk 0:02:52.2]} 4... e6 {[%clk 0:02:38]} 5. c4 {[%clk
0:02:51.8]} 5... Bxb1 {[%clk 0:02:02.7]} 6. Rxb1 {[%clk 0:02:45.8]} 6... Bb4+
{[%clk 0:02:03]} 7. Nd2 {[%clk 0:02:44.5]} 7... Bxd2+ {[%clk 0:01:37.2]} 8. Qxd2
{[%clk 0:02:41.2]} 8... Ne4 {[%clk 0:01:37.3]} 9. Bxd8 {[%clk 0:02:40.5]} 9...
Nxd2 {[%clk 0:01:37]} 10. Kxd2 {[%clk 0:02:39.2]} 10... Kxd8 {[%clk 0:01:36.8]}
11. cxd5 {[%clk 0:02:37.1]} 11... exd5 {[%clk 0:01:36.9]} 12. Be2 {[%clk
0:02:29.7]} 12... Nd7 {[%clk 0:01:36.2]} 13. Rhc1 {[%clk 0:02:25.7]} 13... a5
{[%clk 0:01:31.1]} 14. Bf3 {[%clk 0:02:24.6]} 14... c6 {[%clk 0:01:30.5]} 15. a3
{[%clk 0:02:21.2]} 15... Kc7 {[%clk 0:01:27.4]} 16. b4 {[%clk 0:02:19.2]} 16...
axb4 {[%clk 0:01:27.7]} 17. axb4 {[%clk 0:02:19.6]} 17... Ra2+ {[%clk
0:01:27.9]} 18. Rc2 {[%clk 0:02:19.7]} 18... Rha8 {[%clk 0:01:16.4]} 19. Rc1
{[%clk 0:02:13]} 19... Nb6 {[%clk 0:01:04.2]} 20. b5 {[%clk 0:02:11.4]} 20...
Nc4+ {[%clk 0:01:02.2]} 21. Ke1 {[%clk 0:02:02.9]} 21... Kd6 {[%clk 0:00:15.9]}
22. bxc6 {[%clk 0:01:57.6]} 22... bxc6 {[%clk 0:00:16.8]} 23. e4 {[%clk
0:01:48.9]} 23... Rxc2 {[%clk 0:00:12.6]} 24. Rxc2 {[%clk 0:01:49]} 24... Re8
{[%clk 0:00:13.1]} 25. e5+ {[%clk 0:01:48.1]} 25... Kd7 {[%clk 0:00:13.3]} 26.
Bg4+ {[%clk 0:01:46.5]} 26... Kc7 {[%clk 0:00:12.6]} 27. Ra2 {[%clk 0:01:44.4]}
27... Kb7 {[%clk 0:00:11.1]} 28. Bd7 {[%clk 0:01:36.9]} 28... Re7 {[%clk
0:00:08.5]} 29. Bf5 {[%clk 0:01:36.9]} 29... c5 {[%clk 0:00:08]} 30. dxc5 {[%clk
0:01:29.9]} 30... Rxe5+ {[%clk 0:00:07.5]} 31. Kd1 {[%clk 0:01:28.8]} 31... Rxf5
{[%clk 0:00:07.1]} 32. c6+ {[%clk 0:01:28.1]} 32... Kxc6 {[%clk 0:00:07.4]} 33.
Ra7 {[%clk 0:01:28.4]} 33... h5 {[%clk 0:00:06.1]} 34. f3 {[%clk 0:01:27.9]}
34... g6 {[%clk 0:00:05.6]} 35. Ke2 {[%clk 0:01:25.6]} 35... Re5+ {[%clk
0:00:05.1]} 36. Kf2 {[%clk 0:01:25.4]} 36... Nd6 {[%clk 0:00:04.4]} 37. Ra6+
{[%clk 0:01:24.1]} 37... Kd7 {[%clk 0:00:04.4]} 38. h4 {[%clk 0:01:22.9]} 38...
Re6 {[%clk 0:00:03.3]} 39. Ra7+ {[%clk 0:01:18.8]} 39... Ke8 {[%clk 0:00:03.5]}
40. g4 {[%clk 0:01:15.1]} 40... hxg4 {[%clk 0:00:02.6]} 41. fxg4 {[%clk
0:01:16]} 41... Ne4+ {[%clk 0:00:02.3]} 42. Kf3 {[%clk 0:01:14.5]} 42... Kf8
{[%clk 0:00:02]} 43. Kf4 {[%clk 0:01:12.3]} 43... Kg7 {[%clk 0:00:01.7]} 44. Rd7
{[%clk 0:01:09.3]} 44... Nf6 {[%clk 0:00:01.9]} 45. Rd8 {[%clk 0:01:08.3]} 45...
Re4+ {[%clk 0:00:02.6]} 46. Kf3 {[%clk 0:01:07]} 46... Rxg4 {[%clk 0:00:03.3]}
47. Rd6 {[%clk 0:01:03.7]} 47... Rxh4 {[%clk 0:00:03.6]} 48. Rd8 {[%clk
0:01:04.3]} 48... Re4 {[%clk 0:00:03.7]} 49. Rb8 {[%clk 0:01:05.2]} 49... g5
{[%clk 0:00:04.4]} 50. Kg3 {[%clk 0:01:05.7]} 50... Nh5+ {[%clk 0:00:03.8]} 51.
Kh3 {[%clk 0:01:05.7]} 51... g4+ {[%clk 0:00:04.7]} 52. Kh4 {[%clk 0:01:05.2]}
52... Nf6 {[%clk 0:00:03.2]} 53. Rb7 {[%clk 0:01:04.9]} 53... d4 {[%clk
0:00:03.3]} 54. Rb6 {[%clk 0:01:04]} 54... d3 {[%clk 0:00:03.3]} 55. Rd6 {[%clk
0:01:04.5]} 55... Re3 {[%clk 0:00:02.7]} 56. Kg5 {[%clk 0:01:04.4]} 56... Ne4+
{[%clk 0:00:02.6]} 57. Kf4 {[%clk 0:01:04]} 57... Nxd6 {[%clk 0:00:03.1]} 58.
Kxe3 {[%clk 0:01:04.9]} 58... Kf6 {[%clk 0:00:03.4]} 59. Kxd3 {[%clk 0:01:04.9]}
59... Kg5 {[%clk 0:00:04.3]} 60. Ke3 {[%clk 0:01:05.5]} 60... Kh4 {[%clk
0:00:04.7]} 61. Kf2 {[%clk 0:01:06.3]} 61... Kh3 {[%clk 0:00:05.4]} 62. Kg1
{[%clk 0:01:06.7]} 62... Kg3 {[%clk 0:00:06.1]} 63. Kh1 {[%clk 0:01:07.6]} 63...
Kf2 {[%clk 0:00:06]} 64. Kh2 {[%clk 0:01:08]} 64... g3+ {[%clk 0:00:06.6]} 65.
Kh1 {[%clk 0:01:08.9]} 65... g2+ {[%clk 0:00:07]} 66. Kh2 {[%clk 0:01:09.5]}
66... g1=Q+ {[%clk 0:00:07.9]} 67. Kh3 {[%clk 0:01:10.4]} 67... Qg3# {[%clk
0:00:08.5]} 0-1

[Event "Early-Titled-Tuesday-Blitz-February-27-2024"]
[Site "Chess.com"]
[Date "2024.02.27"]
[Round "5"]
[White "GatoRojo150"]
[Black "Larina_Maria"]
[Result "1-0"]
[WhiteElo "2568"]
[BlackElo "2309"]
[TimeControl "180+1"]
[EndTime "8:54:22 PST"]
[Termination "GatoRojo150 won by checkmate"]

1. e4 {[%clk 0:03:00.9]} 1... c6 {[%clk 0:02:59.6]} 2. Nc3 {[%clk 0:03:00.5]}
2... d5 {[%clk 0:02:59.6]} 3. Nf3 {[%clk 0:03:01.2]} 3... Bg4 {[%clk 0:02:59.2]}
4. Be2 {[%clk 0:03:01.3]} 4... e6 {[%clk 0:02:58.1]} 5. d4 {[%clk 0:03:01.2]}
5... Nd7 {[%clk 0:02:58.2]} 6. O-O {[%clk 0:03:00.7]} 6... dxe4 {[%clk
0:02:57.9]} 7. Nxe4 {[%clk 0:03:00.5]} 7... Ngf6 {[%clk 0:02:58.6]} 8. Nxf6+
{[%clk 0:02:59.2]} 8... Nxf6 {[%clk 0:02:59.5]} 9. Be3 {[%clk 0:02:58.8]} 9...
Be7 {[%clk 0:02:54.4]} 10. h3 {[%clk 0:02:58.7]} 10... Bh5 {[%clk 0:02:54.2]}
11. c4 {[%clk 0:02:58.5]} 11... O-O {[%clk 0:02:53.8]} 12. b4 {[%clk 0:02:56]}
12... Ne4 {[%clk 0:02:29.9]} 13. Qc2 {[%clk 0:02:48.2]} 13... Bg6 {[%clk
0:02:28.7]} 14. Qb3 {[%clk 0:02:47.4]} 14... Qc7 {[%clk 0:02:09.9]} 15. Ne5
{[%clk 0:02:47.2]} 15... Bf6 {[%clk 0:02:04]} 16. Nxg6 {[%clk 0:02:45.2]} 16...
hxg6 {[%clk 0:02:04.4]} 17. Bf3 {[%clk 0:02:44.9]} 17... Ng5 {[%clk 0:02:01.2]}
18. Be2 {[%clk 0:02:44.3]} 18... Rfd8 {[%clk 0:01:57.4]} 19. Rfd1 {[%clk
0:02:44.2]} 19... b6 {[%clk 0:01:47.5]} 20. h4 {[%clk 0:02:40.7]} 20... Ne4
{[%clk 0:01:46.6]} 21. Bf3 {[%clk 0:02:38.5]} 21... Nd6 {[%clk 0:01:46.7]} 22.
h5 {[%clk 0:02:32.2]} 22... gxh5 {[%clk 0:01:45.7]} 23. Bxh5 {[%clk 0:02:31.5]}
23... Nf5 {[%clk 0:01:46]} 24. Bf3 {[%clk 0:02:24.5]} 24... Bxd4 {[%clk
0:01:41.5]} 25. Bg5 {[%clk 0:02:18.5]} 25... Rd7 {[%clk 0:01:31.3]} 26. Rac1
{[%clk 0:02:11.9]} 26... Qg3 {[%clk 0:01:05.1]} 27. Rxd4 {[%clk 0:00:51.5]}
27... Qxg5 {[%clk 0:01:04.1]} 28. Rdd1 {[%clk 0:00:51.4]} 28... Nd4 {[%clk
0:00:32.3]} 29. Qc3 {[%clk 0:00:41.5]} 29... Rad8 {[%clk 0:00:31.3]} 30. Re1
{[%clk 0:00:39.2]} 30... Nxf3+ {[%clk 0:00:24]} 31. Qxf3 {[%clk 0:00:40.1]}
31... c5 {[%clk 0:00:20.2]} 32. a3 {[%clk 0:00:37.2]} 32... cxb4 {[%clk
0:00:19.9]} 33. axb4 {[%clk 0:00:38.1]} 33... Rd2 {[%clk 0:00:18.4]} 34. Re3
{[%clk 0:00:35.3]} 34... R2d4 {[%clk 0:00:17.2]} 35. Rec3 {[%clk 0:00:32.4]}
35... Qd2 {[%clk 0:00:15.5]} 36. g3 {[%clk 0:00:32.2]} 36... Qg5 {[%clk
0:00:11.9]} 37. c5 {[%clk 0:00:32.4]} 37... bxc5 {[%clk 0:00:12.2]} 38. bxc5
{[%clk 0:00:33.1]} 38... Rc8 {[%clk 0:00:08.1]} 39. c6 {[%clk 0:00:33.4]} 39...
Rdd8 {[%clk 0:00:06.5]} 40. c7 {[%clk 0:00:33.4]} 40... Re8 {[%clk 0:00:06.9]}
41. Qc6 {[%clk 0:00:32.7]} 41... a5 {[%clk 0:00:06.9]} 42. Rc5 {[%clk
0:00:32.2]} 42... Qe7 {[%clk 0:00:06.3]} 43. Rxa5 {[%clk 0:00:31.2]} 43... Rf8
{[%clk 0:00:04.4]} 44. Rac5 {[%clk 0:00:31.1]} 44... g6 {[%clk 0:00:03.7]} 45.
Rd1 {[%clk 0:00:31.4]} 45... Qe8 {[%clk 0:00:03]} 46. Rd7 {[%clk 0:00:31.7]}
46... Kg7 {[%clk 0:00:02.9]} 47. Qd6 {[%clk 0:00:31.7]} 47... Kf6 {[%clk
0:00:02.2]} 48. Qe5# {[%clk 0:00:31.1]} 1-0

[Event "Early-Titled-Tuesday-Blitz-February-27-2024"]
[Site "Chess.com"]
[Date "2024.02.27"]
[Round "5"]
[White "ajian"]
[Black "JaloliddinIlkhomi"]
[Result "0-1"]
[WhiteElo "2490"]
[BlackElo "2770"]
[TimeControl "180+1"]
[EndTime "8:54:23 PST"]
[Termination "JaloliddinIlkhomi won on time"]

1. d4 {[%clk 0:02:59.7]} 1... Nf6 {[%clk 0:02:59.5]} 2. c4 {[%clk 0:02:59.8]}
2... e6 {[%clk 0:02:59.7]} 3. Nc3 {[%clk 0:02:59.7]} 3... Bb4 {[%clk 0:03:00]}
4. Qc2 {[%clk 0:02:59.9]} 4... O-O {[%clk 0:02:58.3]} 5. a3 {[%clk 0:03:00.1]}
5... Bxc3+ {[%clk 0:02:57.7]} 6. Qxc3 {[%clk 0:03:01]} 6... b6 {[%clk
0:02:57.3]} 7. Bg5 {[%clk 0:02:59.1]} 7... Bb7 {[%clk 0:02:56.8]} 8. f3 {[%clk
0:02:58.8]} 8... h6 {[%clk 0:02:51.6]} 9. Bh4 {[%clk 0:02:58.7]} 9... d5 {[%clk
0:02:43.7]} 10. e3 {[%clk 0:02:58.6]} 10... Nbd7 {[%clk 0:02:29.2]} 11. cxd5
{[%clk 0:02:58.5]} 11... Nxd5 {[%clk 0:02:02.2]} 12. Bxd8 {[%clk 0:02:56.5]}
12... Nxc3 {[%clk 0:02:02.7]} 13. Bh4 {[%clk 0:02:55.8]} 13... Nd5 {[%clk
0:02:00]} 14. Bf2 {[%clk 0:02:56.4]} 14... c5 {[%clk 0:01:57.5]} 15. Ne2 {[%clk
0:02:50.6]} 15... Rfd8 {[%clk 0:01:56.5]} 16. e4 {[%clk 0:02:45.1]} 16... N5f6
{[%clk 0:01:56.3]} 17. Nc3 {[%clk 0:02:38.4]} 17... cxd4 {[%clk 0:01:49]} 18.
Bxd4 {[%clk 0:02:39.3]} 18... Nc5 {[%clk 0:01:49.6]} 19. Bxc5 {[%clk 0:02:35.7]}
19... bxc5 {[%clk 0:01:50.5]} 20. Bc4 {[%clk 0:02:28.4]} 20... Rd4 {[%clk
0:01:48.4]} 21. b3 {[%clk 0:02:13.9]} 21... Bc6 {[%clk 0:01:43.7]} 22. Ke2
{[%clk 0:02:00.5]} 22... Rad8 {[%clk 0:01:43.5]} 23. Rhd1 {[%clk 0:02:00.7]}
23... Nd7 {[%clk 0:01:39.3]} 24. Bb5 {[%clk 0:01:39.1]} 24... Ne5 {[%clk
0:01:23.6]} 25. Bxc6 {[%clk 0:01:23.4]} 25... Nxc6 {[%clk 0:01:23.4]} 26. Nb5
{[%clk 0:01:05.7]} 26... Rxd1 {[%clk 0:01:14.9]} 27. Rxd1 {[%clk 0:01:06.6]}
27... Rb8 {[%clk 0:01:15.2]} 28. a4 {[%clk 0:01:00.7]} 28... a6 {[%clk
0:01:11.5]} 29. Nc7 {[%clk 0:00:47.1]} 29... Nd4+ {[%clk 0:00:57.5]} 30. Kf2
{[%clk 0:00:46.4]} 30... Rxb3 {[%clk 0:00:44.6]} 31. Nxa6 {[%clk 0:00:44.5]}
31... Rb2+ {[%clk 0:00:45.1]} 32. Kg3 {[%clk 0:00:40.1]} 32... Ne2+ {[%clk
0:00:44.2]} 33. Kg4 {[%clk 0:00:27.1]} 33... c4 {[%clk 0:00:43.9]} 34. Nc5
{[%clk 0:00:21.2]} 34... c3 {[%clk 0:00:42.1]} 35. Nd3 {[%clk 0:00:15.3]} 35...
Ra2 {[%clk 0:00:39.1]} 36. Re1 {[%clk 0:00:13.9]} 36... Nd4 {[%clk 0:00:35.1]}
37. Rc1 {[%clk 0:00:13.7]} 37... c2 {[%clk 0:00:23.3]} 38. Nb4 {[%clk
0:00:13.8]} 38... Rxa4 {[%clk 0:00:23.8]} 39. Nxc2 {[%clk 0:00:08]} 39... Rc4
{[%clk 0:00:24.3]} 40. Nxd4 {[%clk 0:00:04.5]} 40... Rxc1 {[%clk 0:00:24.9]} 41.
Ne2 {[%clk 0:00:03.1]} 41... Rc2 {[%clk 0:00:25]} 42. Nf4 {[%clk 0:00:03.3]}
42... e5 {[%clk 0:00:25.4]} 0-1

[Event "Early-Titled-Tuesday-Blitz-February-27-2024"]
[Site "Chess.com"]
[Date "2024.02.27"]
[Round "5"]
[White "JoliyRoger"]
[Black "Chemim21"]
[Result "1-0"]
[WhiteElo "2423"]
[BlackElo "2208"]
[TimeControl "180+1"]
[EndTime "8:54:23 PST"]
[Termination "JoliyRoger won on time"]

1. d4 {[%clk 0:02:54.3]} 1... d5 {[%clk 0:02:59.2]} 2. c4 {[%clk 0:02:54.4]}
2... dxc4 {[%clk 0:02:59.3]} 3. Nf3 {[%clk 0:02:53.7]} 3... e6 {[%clk
0:02:59.3]} 4. Qa4+ {[%clk 0:02:52.9]} 4... Bd7 {[%clk 0:02:51.8]} 5. Qxc4
{[%clk 0:02:53.1]} 5... Nf6 {[%clk 0:02:47.3]} 6. Nc3 {[%clk 0:02:51.5]} 6... a6
{[%clk 0:02:46.7]} 7. e4 {[%clk 0:02:49.7]} 7... b5 {[%clk 0:02:44.4]} 8. Qd3
{[%clk 0:02:46.9]} 8... b4 {[%clk 0:02:32.1]} 9. Ne2 {[%clk 0:02:46.3]} 9... Bb5
{[%clk 0:02:29.5]} 10. Qc2 {[%clk 0:02:35.6]} 10... Nbd7 {[%clk 0:02:15.4]} 11.
Be3 {[%clk 0:02:32.2]} 11... Rc8 {[%clk 0:02:09.9]} 12. Rd1 {[%clk 0:02:19]}
12... Be7 {[%clk 0:01:58.9]} 13. Nc1 {[%clk 0:01:38.2]} 13... Bxf1 {[%clk
0:01:50.3]} 14. Kxf1 {[%clk 0:01:38.6]} 14... O-O {[%clk 0:01:44.5]} 15. Nb3
{[%clk 0:01:38]} 15... Nb6 {[%clk 0:01:15.4]} 16. Ke2 {[%clk 0:01:34.4]} 16...
Qd7 {[%clk 0:01:14.2]} 17. Nc5 {[%clk 0:00:55.3]} 17... Qb5+ {[%clk 0:01:09.4]}
18. Qd3 {[%clk 0:00:54.4]} 18... Nc4 {[%clk 0:00:53.7]} 19. b3 {[%clk 0:00:36]}
19... Na3 {[%clk 0:00:38.6]} 20. Rc1 {[%clk 0:00:19.3]} 20... Rfd8 {[%clk
0:00:26.3]} 21. Bg5 {[%clk 0:00:17.7]} 21... Bxc5 {[%clk 0:00:20]} 22. Qxb5
{[%clk 0:00:15.3]} 22... Nxb5 {[%clk 0:00:18.1]} 23. Bxf6 {[%clk 0:00:14.2]}
23... gxf6 {[%clk 0:00:16.1]} 24. dxc5 {[%clk 0:00:14.5]} 24... Nc3+ {[%clk
0:00:14.7]} 25. Ke3 {[%clk 0:00:14.7]} 25... c6 {[%clk 0:00:08.5]} 26. Rc2
{[%clk 0:00:13.7]} 26... Nd1+ {[%clk 0:00:06.2]} 27. Ke2 {[%clk 0:00:12.6]}
27... Nc3+ {[%clk 0:00:06.7]} 28. Ke3 {[%clk 0:00:13]} 28... Nd1+ {[%clk
0:00:06.8]} 29. Kf4 {[%clk 0:00:13.6]} 29... Nc3 {[%clk 0:00:06.2]} 30. Re1
{[%clk 0:00:13.1]} 30... e5+ {[%clk 0:00:06.1]} 31. Kg3 {[%clk 0:00:13.2]} 31...
Kg7 {[%clk 0:00:05.9]} 32. Nh4 {[%clk 0:00:12.7]} 32... h5 {[%clk 0:00:04.1]}
33. Nf5+ {[%clk 0:00:12.9]} 33... Kg6 {[%clk 0:00:04.5]} 34. f3 {[%clk
0:00:13.3]} 34... Rd3 {[%clk 0:00:01.1]} 35. Ne3 {[%clk 0:00:12.1]} 1-0

[Event "Early-Titled-Tuesday-Blitz-February-27-2024"]
[Site "Chess.com"]
[Date "2024.02.27"]
[Round "5"]
[White "nindjaxx8"]
[Black "urano56"]
[Result "1-0"]
[WhiteElo "2657"]
[BlackElo "2335"]
[TimeControl "180+1"]
[EndTime "8:54:24 PST"]
[Termination "nindjaxx8 won by resignation"]

1. d4 {[%clk 0:03:00.9]} 1... d5 {[%clk 0:02:55.5]} 2. c4 {[%clk 0:03:01]} 2...
e6 {[%clk 0:02:55.3]} 3. Nc3 {[%clk 0:03:00.7]} 3... c6 {[%clk 0:02:55.3]} 4.
cxd5 {[%clk 0:02:59.9]} 4... exd5 {[%clk 0:02:46.8]} 5. Bf4 {[%clk 0:03:00]}
5... Nf6 {[%clk 0:02:46.1]} 6. e3 {[%clk 0:02:59.9]} 6... Bd6 {[%clk 0:02:46.3]}
7. Bg3 {[%clk 0:02:59.7]} 7... O-O {[%clk 0:02:46.2]} 8. Nf3 {[%clk 0:02:58.9]}
8... Re8 {[%clk 0:02:45.7]} 9. Bd3 {[%clk 0:02:58.4]} 9... Ne4 {[%clk
0:02:45.6]} 10. O-O {[%clk 0:02:57.6]} 10... Nxg3 {[%clk 0:02:44.6]} 11. hxg3
{[%clk 0:02:57.5]} 11... Bg4 {[%clk 0:02:44.4]} 12. Qc2 {[%clk 0:02:56.4]} 12...
h6 {[%clk 0:02:42.8]} 13. Ne2 {[%clk 0:02:55.4]} 13... Nd7 {[%clk 0:02:40.2]}
14. Nf4 {[%clk 0:02:55.1]} 14... Nf6 {[%clk 0:02:38.6]} 15. Rfe1 {[%clk
0:02:51.9]} 15... Qa5 {[%clk 0:02:32.1]} 16. Bf5 {[%clk 0:02:37.9]} 16... Bxf5
{[%clk 0:02:22.7]} 17. Qxf5 {[%clk 0:02:38.8]} 17... Re7 {[%clk 0:02:15.7]} 18.
a3 {[%clk 0:02:29.8]} 18... Rae8 {[%clk 0:02:14.7]} 19. b4 {[%clk 0:02:28.9]}
19... Qc7 {[%clk 0:01:59.7]} 20. Rac1 {[%clk 0:02:19.4]} 20... Ne4 {[%clk
0:01:58.9]} 21. Nxd5 {[%clk 0:02:14.8]} 21... Qd7 {[%clk 0:01:26.6]} 22. Nxe7+
{[%clk 0:02:13]} 22... Qxe7 {[%clk 0:01:27.1]} 23. Qa5 {[%clk 0:01:48]} 23... a6
{[%clk 0:01:25.3]} 24. Qa4 {[%clk 0:01:45.7]} 24... Qe6 {[%clk 0:01:18.7]} 25.
Qc2 {[%clk 0:01:36.7]} 25... g5 {[%clk 0:01:12.5]} 26. Nd2 {[%clk 0:01:11.2]}
26... f5 {[%clk 0:00:58.6]} 27. Nxe4 {[%clk 0:01:04.8]} 27... fxe4 {[%clk
0:00:59.5]} 28. Qe2 {[%clk 0:01:03.3]} 28... Kg7 {[%clk 0:00:56.3]} 29. Red1
{[%clk 0:00:59]} 29... Rf8 {[%clk 0:00:48.9]} 30. Rc2 {[%clk 0:00:53.9]} 30...
Qb3 {[%clk 0:00:41.7]} 31. Qc4 {[%clk 0:00:47.4]} 31... Qxa3 {[%clk 0:00:38.4]}
32. d5 {[%clk 0:00:33.6]} 32... Qxb4 {[%clk 0:00:18.8]} 33. dxc6 {[%clk
0:00:25.2]} 33... bxc6 {[%clk 0:00:14.6]} 34. Qxb4 {[%clk 0:00:17.1]} 34... Bxb4
{[%clk 0:00:14.9]} 35. Rxc6 {[%clk 0:00:17.7]} 35... a5 {[%clk 0:00:15.5]} 36.
Rd7+ {[%clk 0:00:17.5]} 36... Rf7 {[%clk 0:00:12.8]} 37. Rxf7+ {[%clk
0:00:16.7]} 37... Kxf7 {[%clk 0:00:13.2]} 38. Rxh6 {[%clk 0:00:17.4]} 38... Ke7
{[%clk 0:00:08.7]} 39. Ra6 {[%clk 0:00:17.7]} 39... Kd7 {[%clk 0:00:08.8]} 40.
Kf1 {[%clk 0:00:17.5]} 40... Kc7 {[%clk 0:00:09.3]} 41. Ke2 {[%clk 0:00:17.9]}
41... Kb7 {[%clk 0:00:09.9]} 42. Rg6 {[%clk 0:00:16.4]} 42... a4 {[%clk
0:00:10.3]} 43. Rxg5 {[%clk 0:00:16.9]} 43... a3 {[%clk 0:00:10.8]} 44. Rb5+
{[%clk 0:00:17]} 44... Kc6 {[%clk 0:00:09.8]} 45. Rxb4 {[%clk 0:00:17.9]} 45...
a2 {[%clk 0:00:09.7]} 46. Ra4 {[%clk 0:00:18.5]} 1-0

[Event "Early-Titled-Tuesday-Blitz-February-27-2024"]
[Site "Chess.com"]
[Date "2024.02.27"]
[Round "5"]
[White "maximnovik"]
[Black "ural58"]
[Result "0-1"]
[WhiteElo "2593"]
[BlackElo "2471"]
[TimeControl "180+1"]
[EndTime "8:54:26 PST"]
[Termination "ural58 won on time"]

1. e4 {[%clk 0:03:00.9]} 1... d5 {[%clk 0:02:58]} 2. exd5 {[%clk 0:03:00]} 2...
Qxd5 {[%clk 0:02:57.9]} 3. Nc3 {[%clk 0:03:00.4]} 3... Qa5 {[%clk 0:02:57.8]} 4.
d4 {[%clk 0:03:00.8]} 4... Nf6 {[%clk 0:02:57.9]} 5. Nf3 {[%clk 0:03:00.6]} 5...
Nc6 {[%clk 0:02:58.1]} 6. Bb5 {[%clk 0:02:55.3]} 6... Ne4 {[%clk 0:02:56.1]} 7.
O-O {[%clk 0:02:49.2]} 7... Nxc3 {[%clk 0:02:55.7]} 8. Bxc6+ {[%clk 0:02:48.5]}
8... bxc6 {[%clk 0:02:55.9]} 9. bxc3 {[%clk 0:02:42.8]} 9... Bf5 {[%clk
0:02:55.4]} 10. Bf4 {[%clk 0:02:40.5]} 10... e6 {[%clk 0:02:51.9]} 11. Qd2
{[%clk 0:02:34.2]} 11... Bd6 {[%clk 0:02:50]} 12. Ne5 {[%clk 0:02:23.7]} 12...
Qa4 {[%clk 0:02:48.3]} 13. Nd3 {[%clk 0:02:12.5]} 13... Bxf4 {[%clk 0:02:43.4]}
14. Qxf4 {[%clk 0:01:53.7]} 14... Qxc2 {[%clk 0:02:40.2]} 15. Ne5 {[%clk
0:01:48.7]} 15... O-O {[%clk 0:02:37]} 16. Rac1 {[%clk 0:01:47.2]} 16... Qxa2
{[%clk 0:02:35.4]} 17. Nxc6 {[%clk 0:01:44.9]} 17... Bd3 {[%clk 0:01:59.9]} 18.
Rfd1 {[%clk 0:01:33.1]} 18... Bb5 {[%clk 0:01:54.1]} 19. Qxc7 {[%clk 0:01:01]}
19... Qc4 {[%clk 0:01:47.5]} 20. Ne7+ {[%clk 0:00:55]} 20... Kh8 {[%clk
0:01:47.4]} 21. Qxc4 {[%clk 0:00:47.1]} 21... Bxc4 {[%clk 0:01:47.4]} 22. Nc6
{[%clk 0:00:47.5]} 22... a5 {[%clk 0:01:44.9]} 23. Ne5 {[%clk 0:00:46.8]} 23...
Bb3 {[%clk 0:01:44.7]} 24. Re1 {[%clk 0:00:43.3]} 24... f6 {[%clk 0:01:43.7]}
25. Nd3 {[%clk 0:00:42]} 25... a4 {[%clk 0:01:41]} 26. Nc5 {[%clk 0:00:42]}
26... Bc4 {[%clk 0:01:40.7]} 27. Nxe6 {[%clk 0:00:34.2]} 27... Rfc8 {[%clk
0:01:39.6]} 28. Nc5 {[%clk 0:00:30]} 28... a3 {[%clk 0:01:39.7]} 29. g4 {[%clk
0:00:26.1]} 29... a2 {[%clk 0:01:39.8]} 30. Kg2 {[%clk 0:00:25.9]} 30... Ra3
{[%clk 0:01:34.8]} 31. f3 {[%clk 0:00:23.1]} 31... Rca8 {[%clk 0:01:33]} 32. Ra1
{[%clk 0:00:18.7]} 32... Rxc3 {[%clk 0:01:33]} 33. Ne4 {[%clk 0:00:13.5]} 33...
Rc2+ {[%clk 0:01:32.4]} 34. Kg3 {[%clk 0:00:14.1]} 34... h6 {[%clk 0:01:31.5]}
35. h4 {[%clk 0:00:12.9]} 35... Rb8 {[%clk 0:01:25.6]} 36. Nd6 {[%clk
0:00:12.7]} 36... Bd5 {[%clk 0:01:21.1]} 37. Nf5 {[%clk 0:00:07]} 37... Rb3
{[%clk 0:01:17.8]} 38. Ne3 {[%clk 0:00:07.5]} 38... Rcc3 {[%clk 0:00:47.3]} 39.
Nxd5 {[%clk 0:00:07.1]} 39... Rxf3+ {[%clk 0:00:48]} 40. Kg2 {[%clk 0:00:07.6]}
40... Rg3+ {[%clk 0:00:47.5]} 41. Kf2 {[%clk 0:00:08]} 41... Rxg4 {[%clk
0:00:46.9]} 42. Ne3 {[%clk 0:00:07.3]} 42... Rb2+ {[%clk 0:00:45.3]} 43. Re2
{[%clk 0:00:05]} 43... Rf4+ {[%clk 0:00:45.4]} 44. Kg3 {[%clk 0:00:04.2]} 44...
Rxe2 {[%clk 0:00:40.9]} 45. Kxf4 {[%clk 0:00:04.6]} 45... g6 {[%clk 0:00:39.5]}
46. Ke4 {[%clk 0:00:05]} 46... Kg7 {[%clk 0:00:38.1]} 47. Kd3 {[%clk 0:00:05.5]}
47... Rh2 {[%clk 0:00:37.9]} 48. d5 {[%clk 0:00:03.1]} 48... Kf7 {[%clk
0:00:37.4]} 49. Nc4 {[%clk 0:00:02]} 49... Ke7 {[%clk 0:00:37.4]} 0-1